[Event "*** Titled Tuesday 3|2 Blitz"]
[Site "Chess.com"]
[Date "2014.12.30"]
[Round "1"]
[White "pKiLz5Rn9b"]
[Black "ameet100"]
[Result "0-1"]
[WhiteElo "2151"]
[BlackElo "2392"]
[TimeControl "180+2"]
[EndTime "11:10:39 PST"]
[Termination "ameet100 won by resignation"]

1. e4 {[%clk 0:02:55.6]} 1... g6 {[%clk 0:02:48.4]} 2. d4 {[%clk 0:02:53.9]}
2... Bg7 {[%clk 0:02:50.1]} 3. Nf3 {[%clk 0:02:53.6]} 3... d6 {[%clk 0:02:51.7]}
4. h3 {[%clk 0:02:54.8]} 4... a6 {[%clk 0:02:52.7]} 5. a4 {[%clk 0:02:54.8]}
5... Nf6 {[%clk 0:02:53.8]} 6. Nc3 {[%clk 0:02:55.3]} 6... O-O {[%clk
0:02:52.5]} 7. Be3 {[%clk 0:02:56.5]} 7... Nc6 {[%clk 0:02:41.5]} 8. Be2 {[%clk
0:02:57.4]} 8... e5 {[%clk 0:02:34.3]} 9. dxe5 {[%clk 0:02:57.7]} 9... dxe5
{[%clk 0:02:35.5]} 10. Bc4 {[%clk 0:02:57.6]} 10... Qe7 {[%clk 0:02:32.8]} 11.
O-O {[%clk 0:02:49.4]} 11... Rd8 {[%clk 0:02:12.3]} 12. Qb1 {[%clk 0:02:48.8]}
12... h6 {[%clk 0:02:11]} 13. Nd5 {[%clk 0:02:39.1]} 13... Nxd5 {[%clk
0:02:10.6]} 14. exd5 {[%clk 0:02:39.9]} 14... Na5 {[%clk 0:02:06.1]} 15. Ba2
{[%clk 0:02:37.6]} 15... b6 {[%clk 0:01:57.4]} 16. b4 {[%clk 0:02:37.1]} 16...
Nb7 {[%clk 0:01:58.2]} 17. Re1 {[%clk 0:02:33.6]} 17... Qf6 {[%clk 0:01:49.9]}
18. Nh2 {[%clk 0:02:23.5]} 18... a5 {[%clk 0:01:46.9]} 19. c3 {[%clk 0:02:14.3]}
19... Bf5 {[%clk 0:01:40.4]} 20. Qb3 {[%clk 0:02:12.8]} 20... Qd6 {[%clk
0:01:38]} 21. Rad1 {[%clk 0:02:08.4]} 21... Kh7 {[%clk 0:01:37.4]} 22. Nf1
{[%clk 0:01:56.4]} 22... Bd7 {[%clk 0:01:38]} 23. b5 {[%clk 0:01:50.8]} 23... f5
{[%clk 0:01:31.3]} 24. Bb1 {[%clk 0:01:47.5]} 24... Qf6 {[%clk 0:01:27.7]} 25.
Nh2 {[%clk 0:01:30]} 25... Be8 {[%clk 0:01:24.8]} 26. f4 {[%clk 0:01:23.7]}
26... e4 {[%clk 0:01:18.4]} 27. Bd4 {[%clk 0:01:23.1]} 27... Qd6 {[%clk
0:01:18.1]} 28. Bxg7 {[%clk 0:00:54.9]} 28... Kxg7 {[%clk 0:01:16.2]} 29. g3
{[%clk 0:00:54.7]} 29... Bf7 {[%clk 0:01:14.4]} 30. c4 {[%clk 0:00:52.5]} 30...
Qb4 {[%clk 0:01:13.7]} 31. Bc2 {[%clk 0:00:42.6]} 31... Qxb3 {[%clk 0:01:07.3]}
32. Bxb3 {[%clk 0:00:43.3]} 32... Nc5 {[%clk 0:01:09]} 33. Bc2 {[%clk
0:00:44.7]} 33... g5 {[%clk 0:01:07.1]} 34. Nf1 {[%clk 0:00:45]} 34... Bh5
{[%clk 0:01:06.3]} 35. Rd2 {[%clk 0:00:44.7]} 35... Kf6 {[%clk 0:01:03.7]} 36.
Ne3 {[%clk 0:00:45.7]} 36... gxf4 {[%clk 0:01:05.1]} 37. gxf4 {[%clk 0:00:45.9]}
37... Rg8+ {[%clk 0:01:06.8]} 38. Kh2 {[%clk 0:00:44.5]} 38... Bf3 {[%clk
0:01:08]} 39. d6 {[%clk 0:00:42.4]} 39... cxd6 {[%clk 0:01:01.2]} 40. Rxd6+
{[%clk 0:00:43]} 40... Kf7 {[%clk 0:01:01.1]} 41. Rg1 {[%clk 0:00:39.9]} 41...
Rad8 {[%clk 0:00:55.7]} 42. Nxf5 {[%clk 0:00:32.9]} 42... Rxg1 {[%clk
0:00:54.6]} 43. Kxg1 {[%clk 0:00:26.1]} 43... Rg8+ {[%clk 0:00:39.7]} 44. Kf1
{[%clk 0:00:26.8]} 44... Rg2 {[%clk 0:00:39.1]} 45. Bd1 {[%clk 0:00:18.3]} 45...
Rb2 {[%clk 0:00:31]} 46. Bxf3 {[%clk 0:00:19.1]} 46... exf3 {[%clk 0:00:32.4]}
47. Nxh6+ {[%clk 0:00:19.6]} 47... Ke8 {[%clk 0:00:32.1]} 48. Ng4 {[%clk
0:00:19.7]} 48... Ke7 {[%clk 0:00:32.1]} 49. Rd4 {[%clk 0:00:17.8]} 49... Nxa4
{[%clk 0:00:31.4]} 50. f5 {[%clk 0:00:18.9]} 50... Nc5 {[%clk 0:00:32.4]} 51.
f6+ {[%clk 0:00:20.2]} 51... Kf7 {[%clk 0:00:33.8]} 52. Rf4 {[%clk 0:00:21]}
52... Nd7 {[%clk 0:00:29.5]} 53. Rxf3 {[%clk 0:00:22.1]} 53... a4 {[%clk
0:00:30.9]} 54. h4 {[%clk 0:00:22.9]} 54... Rb3 {[%clk 0:00:31]} 55. Rf2 {[%clk
0:00:20.1]} 55... a3 {[%clk 0:00:32.1]} 56. h5 {[%clk 0:00:20.7]} 56... Rb2
{[%clk 0:00:31.1]} 57. Nh6+ {[%clk 0:00:21.1]} 57... Kf8 {[%clk 0:00:31.3]} 58.
Rf3 {[%clk 0:00:06.5]} 58... a2 {[%clk 0:00:30.3]} 59. Ra3 {[%clk 0:00:07.2]}
59... Rb1+ {[%clk 0:00:30.3]} 60. Ke2 {[%clk 0:00:08.5]} 60... a1=Q {[%clk
0:00:31.3]} 61. Rxa1 {[%clk 0:00:10]} 61... Rxa1 {[%clk 0:00:32.9]} 62. f7
{[%clk 0:00:10.8]} 62... Rh1 {[%clk 0:00:29.8]} 63. Kd3 {[%clk 0:00:11.1]} 63...
Rxh5 {[%clk 0:00:29]} 64. Ng4 {[%clk 0:00:12.5]} 64... Kxf7 {[%clk 0:00:29.9]}
65. Ne3 {[%clk 0:00:14]} 65... Ke6 {[%clk 0:00:30.2]} 66. Kd4 {[%clk 0:00:14.1]}
66... Rh4+ {[%clk 0:00:30.8]} 67. Kc3 {[%clk 0:00:15.5]} 67... Rh3 {[%clk
0:00:31.7]} 68. Kd3 {[%clk 0:00:16.5]} 68... Kd6 {[%clk 0:00:31.1]} 69. Kd4
{[%clk 0:00:17.9]} 69... Rxe3 {[%clk 0:00:31.6]} 70. Kxe3 {[%clk 0:00:19]} 70...
Kc5 {[%clk 0:00:33.1]} 0-1

[Event "*** Titled Tuesday 3|2 Blitz"]
[Site "Chess.com"]
[Date "2014.12.30"]
[Round "1"]
[White "ChessWarrior7197"]
[Black "Irochka83"]
[Result "0-1"]
[WhiteElo "1984"]
[BlackElo "2321"]
[TimeControl "180+2"]
[EndTime "11:11:42 PST"]
[Termination "Irochka83 won by resignation"]

1. e4 {[%clk 0:02:59.5]} 1... e6 {[%clk 0:02:57.6]} 2. d4 {[%clk 0:02:59.7]}
2... d5 {[%clk 0:02:54.3]} 3. exd5 {[%clk 0:03:00.6]} 3... exd5 {[%clk
0:02:54.9]} 4. Nf3 {[%clk 0:03:01.5]} 4... Nf6 {[%clk 0:02:51.9]} 5. Bd3 {[%clk
0:03:02.3]} 5... Bd6 {[%clk 0:02:42.8]} 6. O-O {[%clk 0:03:02.5]} 6... O-O
{[%clk 0:02:43.1]} 7. h3 {[%clk 0:03:03.3]} 7... h6 {[%clk 0:02:42.5]} 8. Re1
{[%clk 0:03:04.2]} 8... Nc6 {[%clk 0:02:41.5]} 9. c3 {[%clk 0:03:04.1]} 9... Ne7
{[%clk 0:02:42]} 10. Qc2 {[%clk 0:03:03.1]} 10... Be6 {[%clk 0:02:39.4]} 11.
Nbd2 {[%clk 0:03:02.2]} 11... Qc8 {[%clk 0:02:38.5]} 12. Nf1 {[%clk 0:03:00.2]}
12... Bf5 {[%clk 0:02:37.1]} 13. Ne5 {[%clk 0:02:42.8]} 13... Bxd3 {[%clk
0:02:34.1]} 14. Qxd3 {[%clk 0:02:43.3]} 14... Nf5 {[%clk 0:02:24.6]} 15. Ng3
{[%clk 0:02:37.2]} 15... Nxg3 {[%clk 0:02:20.3]} 16. Qxg3 {[%clk 0:02:37.6]}
16... Kh8 {[%clk 0:02:14]} 17. Qf3 {[%clk 0:02:34.1]} 17... Ne4 {[%clk
0:02:04.2]} 18. Bf4 {[%clk 0:02:21.6]} 18... Qf5 {[%clk 0:02:02.3]} 19. Qg4
{[%clk 0:02:04.7]} 19... Qxg4 {[%clk 0:01:52]} 20. hxg4 {[%clk 0:02:04.9]} 20...
g5 {[%clk 0:01:52.1]} 21. Bh2 {[%clk 0:02:03]} 21... Kg7 {[%clk 0:01:41.2]} 22.
f3 {[%clk 0:02:03.3]} 22... Nf6 {[%clk 0:01:40.9]} 23. Re2 {[%clk 0:02:03.4]}
23... Rfe8 {[%clk 0:01:37.3]} 24. Rae1 {[%clk 0:02:03]} 24... h5 {[%clk
0:01:34.7]} 25. gxh5 {[%clk 0:02:00.9]} 25... Nxh5 {[%clk 0:01:36.6]} 26. Nd3
{[%clk 0:01:57]} 26... Rxe2 {[%clk 0:01:26]} 27. Rxe2 {[%clk 0:01:57.5]} 27...
Ng3 {[%clk 0:01:27.2]} 28. Re1 {[%clk 0:01:43.1]} 28... Rh8 {[%clk 0:01:05.7]}
29. Ne5 {[%clk 0:01:43.6]} 29... Nf5 {[%clk 0:01:05.1]} 30. Ng4 {[%clk
0:01:28.8]} 30... Bxh2+ {[%clk 0:01:04.7]} 31. Nxh2 {[%clk 0:01:29.8]} 31... Rh6
{[%clk 0:00:51.9]} 32. Ng4 {[%clk 0:01:28.5]} 32... Re6 {[%clk 0:00:51.4]} 33.
Rxe6 {[%clk 0:01:28.7]} 33... fxe6 {[%clk 0:00:52.9]} 34. Ne5 {[%clk 0:01:29.7]}
34... Ne3 {[%clk 0:00:47]} 35. Nd3 {[%clk 0:01:27.5]} 35... b6 {[%clk
0:00:44.2]} 36. Kf2 {[%clk 0:01:28.3]} 36... Nc4 {[%clk 0:00:44]} 37. b3 {[%clk
0:01:25.8]} 37... Nd6 {[%clk 0:00:43.4]} 38. g4 {[%clk 0:01:21.4]} 38... Nb5
{[%clk 0:00:39.3]} 39. a4 {[%clk 0:01:02.7]} 39... Nxc3 {[%clk 0:00:37.3]} 40.
Ke1 {[%clk 0:01:03.9]} 40... a5 {[%clk 0:00:36.6]} 41. Kd2 {[%clk 0:00:56.4]}
41... Na2 {[%clk 0:00:37.2]} 42. f4 {[%clk 0:00:52.6]} 42... Kf6 {[%clk
0:00:33.2]} 43. Ke3 {[%clk 0:00:42.9]} 43... Nb4 {[%clk 0:00:32.3]} 44. Ne1
{[%clk 0:00:43.9]} 44... c5 {[%clk 0:00:29.8]} 45. dxc5 {[%clk 0:00:43.4]} 45...
bxc5 {[%clk 0:00:31.7]} 46. fxg5+ {[%clk 0:00:36.9]} 46... Kxg5 {[%clk
0:00:32.3]} 47. Kf3 {[%clk 0:00:38.3]} 47... e5 {[%clk 0:00:32.4]} 48. Kg3
{[%clk 0:00:37.6]} 48... e4 {[%clk 0:00:33.5]} 49. Ng2 {[%clk 0:00:38.6]} 49...
d4 {[%clk 0:00:30.8]} 50. Nf4 {[%clk 0:00:39.6]} 50... d3 {[%clk 0:00:29.3]} 51.
Ne6+ {[%clk 0:00:36.1]} 51... Kg6 {[%clk 0:00:30.5]} 52. Kf2 {[%clk 0:00:37.3]}
52... Nc2 {[%clk 0:00:25.9]} 53. Nxc5 {[%clk 0:00:31.3]} 53... e3+ {[%clk
0:00:27]} 54. Kf3 {[%clk 0:00:31.6]} 54... d2 {[%clk 0:00:25.5]} 55. Ke2 {[%clk
0:00:32.1]} 55... Nd4+ {[%clk 0:00:22.2]} 56. Kd1 {[%clk 0:00:33.2]} 56... Kg5
{[%clk 0:00:21.8]} 57. b4 {[%clk 0:00:25.2]} 57... axb4 {[%clk 0:00:21.8]} 58.
a5 {[%clk 0:00:23.6]} 58... Kxg4 {[%clk 0:00:13.5]} 59. a6 {[%clk 0:00:23.8]}
59... Nb5 {[%clk 0:00:14.4]} 60. Ne4 {[%clk 0:00:19]} 60... Kf4 {[%clk
0:00:11.4]} 61. Nxd2 {[%clk 0:00:15.8]} 61... Kg3 {[%clk 0:00:10.1]} 62. Ne4+
{[%clk 0:00:12]} 62... Kf3 {[%clk 0:00:10.5]} 63. Ng5+ {[%clk 0:00:13.2]} 63...
Kf2 {[%clk 0:00:10.7]} 64. Ne4+ {[%clk 0:00:13.9]} 64... Kf1 {[%clk 0:00:11.4]}
65. Ng3+ {[%clk 0:00:14.5]} 65... Kg2 {[%clk 0:00:12.4]} 66. Nf5 {[%clk
0:00:15.5]} 66... Kf3 {[%clk 0:00:09.5]} 67. Nd4+ {[%clk 0:00:13.8]} 67... Nxd4
{[%clk 0:00:08.6]} 68. a7 {[%clk 0:00:15.1]} 68... e2+ {[%clk 0:00:09.8]} 69.
Kd2 {[%clk 0:00:16.2]} 69... Kf2 {[%clk 0:00:08.6]} 70. a8=Q {[%clk 0:00:16.4]}
70... e1=Q+ {[%clk 0:00:10.2]} 71. Kd3 {[%clk 0:00:17.8]} 71... Qe3+ {[%clk
0:00:09.1]} 72. Kc4 {[%clk 0:00:19.2]} 72... Qc3+ {[%clk 0:00:09.6]} 73. Kd5
{[%clk 0:00:15.8]} 73... Qf3+ {[%clk 0:00:10.2]} 74. Kxd4 {[%clk 0:00:17.1]}
74... Qxa8 {[%clk 0:00:10.4]} 75. Kc4 {[%clk 0:00:15.4]} 75... Qb8 {[%clk
0:00:11.2]} 76. Kb3 {[%clk 0:00:16.2]} 76... Ke3 {[%clk 0:00:11.5]} 0-1

[Event "*** Titled Tuesday 3|2 Blitz"]
[Site "Chess.com"]
[Date "2014.12.30"]
[Round "2"]
[White "SidArun"]
[Black "vinceyoung15"]
[Result "0-1"]
[WhiteElo "1820"]
[BlackElo "1975"]
[TimeControl "180+2"]
[EndTime "11:16:32 PST"]
[Termination "vinceyoung15 won by resignation"]

1. e4 {[%clk 0:03:00]} 1... c5 {[%clk 0:02:51.3]} 2. c3 {[%clk 0:02:59.9]} 2...
d5 {[%clk 0:02:51.4]} 3. exd5 {[%clk 0:02:59]} 3... Qxd5 {[%clk 0:02:52]} 4. d4
{[%clk 0:03:00]} 4... cxd4 {[%clk 0:02:52.4]} 5. cxd4 {[%clk 0:03:00.6]} 5... e5
{[%clk 0:02:54]} 6. dxe5 {[%clk 0:02:36]} 6... Qxd1+ {[%clk 0:02:53.5]} 7. Kxd1
{[%clk 0:02:37]} 7... Nc6 {[%clk 0:02:54.9]} 8. Bb5 {[%clk 0:02:37.7]} 8... Bd7
{[%clk 0:02:55.2]} 9. Bxc6 {[%clk 0:02:37.4]} 9... Bxc6 {[%clk 0:02:56.1]} 10.
f3 {[%clk 0:02:39]} 10... O-O-O+ {[%clk 0:02:55.7]} 11. Kc2 {[%clk 0:02:39.2]}
11... f6 {[%clk 0:02:56.2]} 12. exf6 {[%clk 0:02:38.8]} 12... Nxf6 {[%clk
0:02:57]} 13. Nc3 {[%clk 0:02:40]} 13... Be8 {[%clk 0:02:54.8]} 14. Be3 {[%clk
0:02:30.2]} 14... Bg6+ {[%clk 0:02:54.2]} 15. Kb3 {[%clk 0:02:31]} 15... Kb8
{[%clk 0:02:50]} 16. Nge2 {[%clk 0:02:28.5]} 16... Nd5 {[%clk 0:02:45.3]} 17.
Nxd5 {[%clk 0:02:28.2]} 17... Rxd5 {[%clk 0:02:46]} 18. Bf4+ {[%clk 0:02:29.3]}
18... Ka8 {[%clk 0:02:44.8]} 19. Rad1 {[%clk 0:02:21.6]} 19... Rb5+ {[%clk
0:02:41.5]} 20. Ka4 {[%clk 0:02:20.7]} 20... Rb4+ {[%clk 0:02:40.8]} 21. Ka5
{[%clk 0:02:10.6]} 21... Bc5 {[%clk 0:02:16.4]} 22. b3 {[%clk 0:01:58.9]} 22...
b6+ {[%clk 0:02:08.2]} 23. Ka6 {[%clk 0:01:59.9]} 23... Bf5 {[%clk 0:02:07.8]}
0-1

[Event "*** Titled Tuesday 3|2 Blitz"]
[Site "Chess.com"]
[Date "2014.12.30"]
[Round "2"]
[White "grandmastergauri"]
[Black "steinitz_attack"]
[Result "1-0"]
[WhiteElo "2258"]
[BlackElo "1787"]
[TimeControl "180+2"]
[EndTime "11:17:49 PST"]
[Termination "grandmastergauri won by checkmate"]

1. e4 {[%clk 0:03:00]} 1... e5 {[%clk 0:02:55.8]} 2. Nf3 {[%clk 0:03:00.6]} 2...
Nc6 {[%clk 0:02:57.4]} 3. Bc4 {[%clk 0:03:01.4]} 3... Nd4 {[%clk 0:02:57.4]} 4.
Nxd4 {[%clk 0:02:53]} 4... exd4 {[%clk 0:02:58.8]} 5. d3 {[%clk 0:02:54.1]} 5...
Qf6 {[%clk 0:02:59.9]} 6. O-O {[%clk 0:02:53.9]} 6... Bc5 {[%clk 0:02:59]} 7. f4
{[%clk 0:02:54.6]} 7... d6 {[%clk 0:02:59.2]} 8. f5 {[%clk 0:02:53.9]} 8... Ne7
{[%clk 0:02:57.6]} 9. Qh5 {[%clk 0:02:53.1]} 9... O-O {[%clk 0:02:55.4]} 10. Bg5
{[%clk 0:02:48.5]} 10... Qe5 {[%clk 0:02:56.2]} 11. Bf4 {[%clk 0:02:46.2]} 11...
Qf6 {[%clk 0:02:56.8]} 12. Bg5 {[%clk 0:02:38.7]} 12... Qe5 {[%clk 0:02:57.4]}
13. Nd2 {[%clk 0:02:40.3]} 13... Nc6 {[%clk 0:02:39.6]} 14. Nf3 {[%clk 0:02:36]}
14... Qe8 {[%clk 0:02:39.4]} 15. f6 {[%clk 0:02:27.8]} 15... Qd7 {[%clk
0:02:02.8]} 16. fxg7 {[%clk 0:02:25.7]} 16... Re8 {[%clk 0:02:03.9]} 17. Nh4
{[%clk 0:02:17.5]} 17... Ne5 {[%clk 0:02:00.6]} 18. Nf5 {[%clk 0:02:15.7]} 18...
Ng6 {[%clk 0:01:39.4]} 19. Bxf7+ {[%clk 0:01:54.2]} 19... Kxf7 {[%clk
0:01:31.3]} 20. Qxh7 {[%clk 0:01:53.9]} 20... Ke6 {[%clk 0:00:42.8]} 21. Qxg6+
{[%clk 0:01:50.9]} 21... Ke5 {[%clk 0:00:39]} 22. Qf6# {[%clk 0:01:51]} 1-0

[Event "*** Titled Tuesday 3|2 Blitz"]
[Site "Chess.com"]
[Date "2014.12.30"]
[Round "2"]
[White "Irochka83"]
[Black "A-Fier"]
[Result "0-1"]
[WhiteElo "2306"]
[BlackElo "2558"]
[TimeControl "180+2"]
[EndTime "11:19:25 PST"]
[Termination "A-Fier won on time"]

1. Nf3 {[%clk 0:01:42.1]} 1... Nf6 {[%clk 0:02:58.3]} 2. g3 {[%clk 0:01:42.6]}
2... g6 {[%clk 0:02:59.9]} 3. Bg2 {[%clk 0:01:43.3]} 3... Bg7 {[%clk 0:03:01.7]}
4. O-O {[%clk 0:01:43.5]} 4... O-O {[%clk 0:03:03.6]} 5. c4 {[%clk 0:01:44.2]}
5... c6 {[%clk 0:03:04.1]} 6. d4 {[%clk 0:01:42.3]} 6... d5 {[%clk 0:03:05.7]}
7. cxd5 {[%clk 0:01:43.4]} 7... cxd5 {[%clk 0:03:07.6]} 8. Ne5 {[%clk
0:01:44.4]} 8... Ne4 {[%clk 0:03:08.7]} 9. Nd2 {[%clk 0:01:30.3]} 9... Nxd2
{[%clk 0:03:07.4]} 10. Bxd2 {[%clk 0:01:31]} 10... Nc6 {[%clk 0:03:08.7]} 11.
Nxc6 {[%clk 0:01:31]} 11... bxc6 {[%clk 0:03:09.8]} 12. Be3 {[%clk 0:01:28.6]}
12... e5 {[%clk 0:03:09.2]} 13. dxe5 {[%clk 0:01:26.3]} 13... Bxe5 {[%clk
0:03:11.1]} 14. Bd4 {[%clk 0:01:25.3]} 14... Qf6 {[%clk 0:03:12]} 15. Bxe5
{[%clk 0:01:22.7]} 15... Qxe5 {[%clk 0:03:13.9]} 16. Qd2 {[%clk 0:01:20.4]}
16... Ba6 {[%clk 0:03:14.6]} 17. Rfe1 {[%clk 0:01:14.8]} 17... Rfd8 {[%clk
0:03:10]} 18. Rac1 {[%clk 0:01:14.1]} 18... Rac8 {[%clk 0:03:11]} 19. Rc5 {[%clk
0:01:13.1]} 19... Qe7 {[%clk 0:03:04.1]} 20. Qd4 {[%clk 0:01:10.2]} 20... Rd6
{[%clk 0:02:51.7]} 21. e3 {[%clk 0:01:10.2]} 21... Bb7 {[%clk 0:02:44.7]} 22.
Rec1 {[%clk 0:01:10.6]} 22... Re8 {[%clk 0:02:44]} 23. Ra5 {[%clk 0:01:05.9]}
23... a6 {[%clk 0:02:45]} 24. b4 {[%clk 0:01:00.2]} 24... Re6 {[%clk 0:02:43.3]}
25. Bf1 {[%clk 0:00:53.5]} 25... Re4 {[%clk 0:02:42.8]} 26. Qd2 {[%clk
0:00:51.4]} 26... Rxb4 {[%clk 0:02:38.8]} 27. a3 {[%clk 0:00:35.1]} 27... Re4
{[%clk 0:02:30.4]} 28. Bxa6 {[%clk 0:00:31.2]} 28... Ba8 {[%clk 0:02:31.7]} 29.
Bd3 {[%clk 0:00:25.5]} 29... Re5 {[%clk 0:02:31.8]} 30. Rac5 {[%clk 0:00:24.9]}
30... h5 {[%clk 0:02:32.6]} 31. h4 {[%clk 0:00:12.3]} 31... g5 {[%clk
0:02:33.4]} 32. hxg5 {[%clk 0:00:12.9]} 32... Rxg5 {[%clk 0:02:35.3]} 33. Kf1
{[%clk 0:00:11.1]} 33... Qe6 {[%clk 0:02:33.3]} 34. Qb4 {[%clk 0:00:06.9]} 34...
Qh3+ {[%clk 0:02:23.8]} 35. Ke2 {[%clk 0:00:07.9]} 35... Qg2 {[%clk 0:02:22.7]}
36. Qf4 {[%clk 0:00:07.4]} 36... Rge5 {[%clk 0:02:23.3]} 37. Kd2 {[%clk
0:00:06.1]} 37... Qh3 {[%clk 0:02:11.1]} 38. Be2 {[%clk 0:00:05.1]} 38... Rf5
{[%clk 0:02:10.8]} 39. Qh6 {[%clk 0:00:04.3]} 39... Re6 {[%clk 0:02:10]} 0-1

[Event "*** Titled Tuesday 3|2 Blitz"]
[Site "Chess.com"]
[Date "2014.12.30"]
[Round "2"]
[White "RitvarsReimanis"]
[Black "liczner"]
[Result "1-0"]
[WhiteElo "2292"]
[BlackElo "2396"]
[TimeControl "180+2"]
[EndTime "11:20:06 PST"]
[Termination "RitvarsReimanis won on time"]

1. d4 {[%clk 0:03:00]} 1... Nf6 {[%clk 0:02:57.1]} 2. c4 {[%clk 0:02:58.4]} 2...
g6 {[%clk 0:02:49.4]} 3. Nf3 {[%clk 0:02:55]} 3... Bg7 {[%clk 0:02:49.5]} 4. g3
{[%clk 0:02:56.2]} 4... d5 {[%clk 0:02:47]} 5. Bg2 {[%clk 0:02:56.6]} 5... dxc4
{[%clk 0:02:46.6]} 6. Qa4+ {[%clk 0:02:56.4]} 6... Nc6 {[%clk 0:02:34.5]} 7.
Qxc4 {[%clk 0:02:53.6]} 7... O-O {[%clk 0:02:32.4]} 8. O-O {[%clk 0:02:54.6]}
8... Be6 {[%clk 0:02:21.7]} 9. Qa4 {[%clk 0:02:55.5]} 9... Nd5 {[%clk
0:02:03.5]} 10. Qd1 {[%clk 0:02:39.6]} 10... Nb6 {[%clk 0:01:50.4]} 11. e3
{[%clk 0:02:38.6]} 11... Bc4 {[%clk 0:01:26.8]} 12. Re1 {[%clk 0:02:38.4]} 12...
e5 {[%clk 0:01:27.6]} 13. Nxe5 {[%clk 0:02:25.3]} 13... Nxe5 {[%clk 0:01:27.4]}
14. dxe5 {[%clk 0:02:26.1]} 14... Bxe5 {[%clk 0:01:26.4]} 15. Bxb7 {[%clk
0:02:26.2]} 15... Qxd1 {[%clk 0:01:11.7]} 16. Rxd1 {[%clk 0:02:26.3]} 16... Rad8
{[%clk 0:01:12.6]} 17. Re1 {[%clk 0:02:16.8]} 17... Na4 {[%clk 0:00:54.1]} 18.
Nd2 {[%clk 0:02:12.4]} 18... Bd3 {[%clk 0:00:50.6]} 19. Nf3 {[%clk 0:02:06]}
19... Bf6 {[%clk 0:00:48.7]} 20. Nd4 {[%clk 0:02:01.3]} 20... c5 {[%clk
0:00:43.7]} 21. Bc6 {[%clk 0:02:02.4]} 21... Nb6 {[%clk 0:00:28.6]} 22. Ne2
{[%clk 0:01:42]} 22... Rc8 {[%clk 0:00:23.2]} 23. Bf3 {[%clk 0:01:38.1]} 23...
Na4 {[%clk 0:00:20.2]} 24. Nf4 {[%clk 0:01:33]} 24... Bc2 {[%clk 0:00:20.8]} 25.
Nd5 {[%clk 0:01:34.2]} 25... Bd8 {[%clk 0:00:02.8]} 26. b3 {[%clk 0:01:32.2]}
26... Nb6 {[%clk 0:00:03.1]} 27. Bb2 {[%clk 0:01:29.6]} 27... Nxd5 {[%clk
0:00:03.9]} 28. Bxd5 {[%clk 0:01:31.5]} 28... Ba5 {[%clk 0:00:04.5]} 29. Rec1
{[%clk 0:01:28.9]} 29... Bf5 {[%clk 0:00:05]} 30. e4 {[%clk 0:01:27.1]} 30...
Bg4 {[%clk 0:00:05.1]} 31. Kg2 {[%clk 0:01:26]} 31... Be6 {[%clk 0:00:03.3]} 32.
Bf6 {[%clk 0:01:23.2]} 1-0

[Event "*** Titled Tuesday 3|2 Blitz"]
[Site "Chess.com"]
[Date "2014.12.30"]
[Round "2"]
[White "THORK"]
[Black "DanielNaroditsky"]
[Result "0-1"]
[WhiteElo "2204"]
[BlackElo "2466"]
[TimeControl "180+2"]
[EndTime "11:20:11 PST"]
[Termination "DanielNaroditsky won by resignation"]

1. e4 {[%clk 0:02:59]} 1... e5 {[%clk 0:02:58.3]} 2. Nc3 {[%clk 0:02:58.1]} 2...
Nc6 {[%clk 0:02:59.1]} 3. Bc4 {[%clk 0:02:59.3]} 3... Nf6 {[%clk 0:02:56.6]} 4.
d3 {[%clk 0:03:00.7]} 4... Bb4 {[%clk 0:02:57.3]} 5. Ne2 {[%clk 0:03:01.8]} 5...
d5 {[%clk 0:02:58.1]} 6. exd5 {[%clk 0:03:02]} 6... Nxd5 {[%clk 0:02:59.8]} 7.
O-O {[%clk 0:03:03.2]} 7... Be6 {[%clk 0:03:01.1]} 8. Bb3 {[%clk 0:03:03.5]}
8... O-O {[%clk 0:02:59.4]} 9. Kh1 {[%clk 0:03:04.6]} 9... Re8 {[%clk 0:02:45]}
10. f4 {[%clk 0:03:03.7]} 10... exf4 {[%clk 0:02:45.2]} 11. Bxf4 {[%clk
0:03:05]} 11... Nxf4 {[%clk 0:02:41.6]} 12. Nxf4 {[%clk 0:03:06.1]} 12... Bxb3
{[%clk 0:02:40.8]} 13. axb3 {[%clk 0:03:07.5]} 13... Bd6 {[%clk 0:02:39.5]} 14.
Qg4 {[%clk 0:03:04.5]} 14... Ne5 {[%clk 0:02:40]} 15. Qh3 {[%clk 0:03:02.4]}
15... c6 {[%clk 0:02:34.1]} 16. Nh5 {[%clk 0:03:00.3]} 16... Qd7 {[%clk
0:02:22.3]} 17. Qxd7 {[%clk 0:02:27.6]} 17... Nxd7 {[%clk 0:02:22.9]} 18. Ne4
{[%clk 0:02:28.7]} 18... Be5 {[%clk 0:02:22.2]} 19. c3 {[%clk 0:02:30]} 19... g6
{[%clk 0:02:22.7]} 20. Nf4 {[%clk 0:02:29.2]} 20... f5 {[%clk 0:02:21.1]} 21.
Ng3 {[%clk 0:02:24.8]} 21... Bxf4 {[%clk 0:02:09.5]} 22. Rxf4 {[%clk 0:02:25.2]}
22... Nc5 {[%clk 0:02:11.3]} 23. Rd1 {[%clk 0:02:06.3]} 23... Rad8 {[%clk
0:02:04]} 24. d4 {[%clk 0:01:59.3]} 24... Nxb3 {[%clk 0:02:05]} 25. h4 {[%clk
0:02:00.6]} 25... Na5 {[%clk 0:01:54.5]} 26. h5 {[%clk 0:02:00.6]} 26... Nc4
{[%clk 0:01:55.7]} 27. hxg6 {[%clk 0:02:00.7]} 27... hxg6 {[%clk 0:01:56.4]} 28.
Rf2 {[%clk 0:02:01.6]} 28... Re3 {[%clk 0:01:54]} 29. Nf1 {[%clk 0:02:02.2]}
29... Re4 {[%clk 0:01:52.3]} 30. Rd3 {[%clk 0:02:01.2]} 30... Rde8 {[%clk
0:01:50.8]} 31. Rg3 {[%clk 0:02:01.9]} 31... Kf7 {[%clk 0:01:51.2]} 32. Rh3
{[%clk 0:02:01.5]} 32... Kg7 {[%clk 0:01:51.5]} 33. Kh2 {[%clk 0:01:59]} 33...
Re2 {[%clk 0:01:47.3]} 34. Rxe2 {[%clk 0:01:59.6]} 34... Rxe2 {[%clk 0:01:49.1]}
35. b3 {[%clk 0:01:59.3]} 35... Na5 {[%clk 0:01:49.8]} 36. b4 {[%clk 0:02:00]}
36... Nc4 {[%clk 0:01:50.4]} 37. Rf3 {[%clk 0:01:50.9]} 37... b6 {[%clk
0:01:48.6]} 38. Kg3 {[%clk 0:01:51.6]} 38... a5 {[%clk 0:01:47.6]} 39. bxa5
{[%clk 0:01:51.8]} 39... bxa5 {[%clk 0:01:49.3]} 40. Rd3 {[%clk 0:01:51.5]}
40... a4 {[%clk 0:01:41.8]} 41. d5 {[%clk 0:01:52.8]} 41... cxd5 {[%clk
0:01:39.8]} 42. Rxd5 {[%clk 0:01:54]} 42... a3 {[%clk 0:01:41.5]} 43. Rd7+
{[%clk 0:01:55.4]} 43... Kf6 {[%clk 0:01:42.1]} 44. Ra7 {[%clk 0:01:56.2]} 44...
a2 {[%clk 0:01:42.6]} 45. Kf3 {[%clk 0:01:52.2]} 45... Re1 {[%clk 0:01:42.1]}
46. Ra6+ {[%clk 0:01:48.5]} 46... Ke5 {[%clk 0:01:34]} 47. Rxa2 {[%clk
0:01:45.4]} 47... Rxf1+ {[%clk 0:01:34.9]} 48. Kg3 {[%clk 0:01:44]} 48... Ne3
{[%clk 0:01:30.7]} 49. Ra5+ {[%clk 0:01:35.8]} 49... Kf6 {[%clk 0:01:31.6]} 50.
Ra6+ {[%clk 0:01:34.6]} 50... Kg5 {[%clk 0:01:31.5]} 51. Re6 {[%clk 0:01:34.3]}
51... Rc1 {[%clk 0:01:30.3]} 52. Kf3 {[%clk 0:01:31]} 52... Nd5 {[%clk
0:01:27.8]} 53. Re5 {[%clk 0:01:30.9]} 53... Rxc3+ {[%clk 0:01:28.2]} 54. Kf2
{[%clk 0:01:32.3]} 54... Nf4 {[%clk 0:01:29.6]} 55. Re8 {[%clk 0:01:31]} 55...
Rc2+ {[%clk 0:01:30.1]} 56. Kf3 {[%clk 0:01:32.4]} 56... Nxg2 {[%clk 0:01:30.3]}
57. Rh8 {[%clk 0:01:31.5]} 57... Nh4+ {[%clk 0:01:29.3]} 58. Kg3 {[%clk
0:01:32.4]} 58... Rc3+ {[%clk 0:01:30.4]} 59. Kh2 {[%clk 0:01:33]} 59... Kg4
{[%clk 0:01:31.6]} 60. Rh7 {[%clk 0:01:31.7]} 60... Rc2+ {[%clk 0:01:31.1]} 61.
Kh1 {[%clk 0:01:31.6]} 61... Kg3 {[%clk 0:01:31.1]} 0-1